lending/lending_fUSD_20241211
["ID","MTS","AMOUNT","RATE_DAILY","PERIOD"]
[344955319,1733896252675,-500.0,0.00010978,2]
[344955321,1733896252684,-500.0,0.00010978,2]
[344955323,1733896252693,-500.0,0.00010978,2]
[344955325,1733896252702,-500.0,0.00010978,2]
[344955327,1733896252711,-500.0,0.00010978,2]
[344955329,1733896252721,-500.0,0.00010978,2]
[344955331,1733896252730,-500.0,0.00010978,2]
[344955333,1733896252739,-500.0,0.00010978,2]
[344955335,1733896252748,-500.0,0.00010978,2]
[344955337,1733896252760,-500.0,0.00010978,2]
[344955339,1733896252769,-500.0,0.00010978,2]
[344955341,1733896252779,-500.0,0.00010978,2]
[344955343,1733896252788,-500.0,0.00010978,2]
[344955345,1733896252797,-500.0,0.00010978,2]
[344955347,1733896252806,-500.0,0.00010978,2]
[344955349,1733896252815,-305.1,0.00010978,2]
[344955351,1733896252825,-3189.35,0.00010978,2]
[344955353,1733896252834,-500.0,0.00010978,2]
[344955355,1733896252844,-3189.35,0.00010978,2]
[344955357,1733896252852,-500.0,0.00010978,2]
[344955359,1733896252862,-3189.35,0.00010978,2]
[344955361,1733896252871,-3189.35,0.00010978,2]
[344955363,1733896252880,-288.1397173,0.00010978,2]
[344955365,1733896252889,-111636.05856123,0.00010979,2]
[344955367,1733896252897,-2005816.06080911,0.00010979,2]
[344955372,1733896252937,-975.99,0.00010979,2]
[344955409,1733896253295,-500.0,0.00010958,2]
[344955411,1733896253304,-500.0,0.00010958,2]
[344955413,1733896253313,-500.0,0.00010958,2]
[344955415,1733896253322,-500.0,0.00010958,2]
[344955417,1733896253332,-500.0,0.00010958,2]
[344955418,1733896253341,-500.0,0.00010978,2]
[344955420,1733896253351,-500.0,0.00010978,2]
[344955422,1733896253360,-500.0,0.00010978,2]
[344955424,1733896253370,-500.0,0.00010978,2]
[344955426,1733896253379,-6958.3971403,0.00010979,2]
[344955431,1733896253411,-25799.87572153,0.00010979,2]
[344955433,1733896253422,-5596.99824848,0.00010979,2]
[344955456,1733896253635,-500.0,0.00010958,2]
[344955458,1733896253645,-131.76260312,0.00010958,2]
[344955468,1733896253808,-368.23739688,0.00010958,2]
[344955470,1733896253818,-4607.29196626,0.00010979,2]
[344956349,1733896424809,53939.89723027,0.0002,120]
[344956350,1733896424838,95082.62387818,0.0002,120]
[344956351,1733896424869,14471980.64392592,0.0002,120]
[344956352,1733896424902,2850977.47889155,0.0002,120]
[344956353,1733896440734,150.0,9.501e-05,2]
[344956355,1733897071183,659.77,8.219e-05,2]
[344956370,1733897431884,-250.0,9.701e-05,2]
[344956371,1733897431894,-432.37,9.769e-05,2]
[344956372,1733897431904,-216.04,9.769e-05,2]
[344956373,1733897431913,-96.58,9.795e-05,2]
[344956374,1733897431999,-903.42,9.795e-05,2]
[344956375,1733897432008,-300.0,9.838e-05,2]
[344956376,1733897432017,-4988.6061212,9.839e-05,2]
[344956377,1733897432061,-708.7217319,9.839e-05,2]
[344956378,1733897432072,-319.14401411,9.839e-05,2]
[344956379,1733897432083,-711.47500005,9.839e-05,2]
[344956380,1733897432094,-874.46424162,9.839e-05,2]
[344956381,1733897432105,-1198.4,9.839e-05,2]
[344956382,1733897432116,-929.64434,9.839e-05,2]
[344956383,1733897432142,-1691.761356,9.839e-05,2]
[344956397,1733897437988,-653.67901261,9.839e-05,2]
[344956398,1733897438228,-255.0,9.839e-05,2]
[344956418,1733897439841,-265.75544029,9.839e-05,2]
[344956419,1733897439853,-3742.43993127,9.839e-05,2]
[344956420,1733897439900,-3073.13814854,9.839e-05,2]
[344956421,1733897439913,-499.7582014,9.839e-05,2]
[344956422,1733897439924,-922.49870952,9.839e-05,2]
[344956423,1733897439958,-3065.51375149,9.839e-05,2]
[344956424,1733897439967,-859.18,9.864e-05,2]
[344956425,1733897439979,-250.0,9.884e-05,2]
[344956426,1733897439988,-133.94116876,9.9e-05,3]
[344956427,1733897439999,-166.05883124,9.9e-05,3]
[344956428,1733897440010,-330.07,9.904e-05,3]
[344956429,1733897440020,-700.0,0.0001,3]
[344956430,1733897440029,-1100.0,0.000101,3]
[344956431,1733897440039,-307.56306279,0.000102,2]
[344956432,1733897440069,-208.91693721,0.000102,2]
[344956433,1733897440079,-1500.0,0.000102,3]
[344956434,1733897440088,-166.5,0.00010205,2]
[344956435,1733897440097,-150.0,0.00010278,2]
[344956436,1733897440107,-1900.0,0.000103,3]
[344956437,1733897440116,-150.0,0.00010357,2]
[344956438,1733897440126,-300.0,0.000104,3]
[344956439,1733897440135,-501.0,0.00010438,2]
[344956440,1733897440145,-659.77,0.00010461,2]
[344956441,1733897440154,-300.0,0.000105,3]
[344956442,1733897440163,-313.695,0.0001053,2]
[344956443,1733897440173,-300.0,0.000106,3]
[344956444,1733897440183,-164.36,0.00010644,2]
[344956445,1733897440192,-150.0,0.00010644,2]
[344956446,1733897440201,-3709.6488,0.00010658,2]
[344956447,1733897440210,-300.0,0.000107,3]
[344956448,1733897440219,-21573.0,0.0001074,2]
[344956449,1733897440230,-150.0,0.00010758,2]
[344956450,1733897440239,-1000.0,0.00010758,2]
[344956451,1733897440249,-200.0,0.00010766,2]
[344956452,1733897440260,-2126.2,0.00010778,2]
[344956453,1733897440271,-1100.0,0.000108,3]
[344956454,1733897440281,-354.0,0.00010822,2]
[344956455,1733897440291,-100018.035,0.00010858,2]
[344956457,1733897440301,-5000.0,0.00010858,2]
[344956458,1733897440310,-2500.0,0.00010858,2]
[344956459,1733897440320,-171.23821872,0.000109,2]
[344956460,1733897440329,-171.23821872,0.00010918,2]
[344956461,1733897440339,-2566.29,0.00010957,2]
[344956462,1733897440348,-436.511337,0.00010958,2]
[344956463,1733897440357,-436.511337,0.00010958,2]
[344956464,1733897440366,-436.511337,0.00010958,2]
[344956465,1733897440375,-436.511337,0.00010958,2]
[344956466,1733897440384,-436.511337,0.00010958,2]
[344956467,1733897440395,-436.511337,0.00010958,2]
[344956468,1733897440405,-436.511337,0.00010958,2]
[344956469,1733897440415,-436.511337,0.00010958,2]
[344956470,1733897440424,-436.511337,0.00010958,2]
[344956471,1733897440436,-500.0,0.00010958,2]
[344956472,1733897440446,-500.0,0.00010958,2]
[344956473,1733897440456,-503.01734321,0.00010958,2]
[344956474,1733897440466,-500.0,0.00010958,2]
[344956475,1733897440476,-503.46782255,0.00010958,2]
[344956476,1733897440485,-500.0,0.00010958,2]
[344956477,1733897440495,-501.21788615,0.00010958,2]
[344956478,1733897440504,-214.72699154,0.00010958,2]
[344956479,1733897440515,-500.0,0.00010958,2]
[344956480,1733897440524,-500.0,0.00010958,2]
[344956481,1733897440534,-500.0,0.00010958,2]
[344956482,1733897440543,-500.0,0.00010958,2]
[344956483,1733897440553,-500.0,0.00010958,2]
[344956484,1733897440562,-500.0,0.00010958,2]
[344956485,1733897440571,-554.98,0.00010958,2]
[344956486,1733897440580,-554.98,0.00010958,2]
[344956487,1733897440590,-554.98,0.00010958,2]
[344956488,1733897440599,-500.0,0.00010958,2]
[344956489,1733897440608,-500.0,0.00010958,2]
[344956490,1733897440619,-500.0,0.00010958,2]
[344956491,1733897440629,-500.0,0.00010958,2]
[344956492,1733897440639,-368.76202956,0.00010958,2]
[344956493,1733897440648,-500.0,0.00010958,2]
[344956494,1733897440657,-334.96202573,0.00010958,2]
[344956495,1733897440666,-500.0,0.00010958,2]
[344956496,1733897440675,-500.0,0.00010958,2]
[344956497,1733897440685,-500.0,0.00010958,2]
[344956498,1733897440694,-500.0,0.00010958,2]
[344956499,1733897440704,-500.0,0.00010958,2]
[344956500,1733897440713,-500.0,0.00010958,2]
[344956501,1733897440725,-500.0,0.00010958,2]
[344956502,1733897440735,-500.0,0.00010958,2]
[344956503,1733897440746,-500.0,0.00010958,2]
[344956504,1733897440756,-500.0,0.00010958,2]
[344956505,1733897440765,-554.45,0.00010958,2]
[344956506,1733897440774,-436.22918837,0.00010958,2]
[344956507,1733897440785,-554.45,0.00010958,2]
[344956508,1733897440794,-300.0,0.00010958,2]
[344956509,1733897440804,-500.0,0.00010958,2]
[344956510,1733897440814,-500.0,0.00010958,2]
[344956511,1733897440824,-500.0,0.00010958,2]
[344956512,1733897440834,-500.0,0.00010958,2]
[344956513,1733897440843,-588.21,0.00010958,2]
[344956514,1733897440852,-588.21,0.00010958,2]
[344956515,1733897440861,-500.0,0.00010958,2]
[344956516,1733897440871,-500.0,0.00010958,2]
[344956517,1733897440880,-500.0,0.00010958,2]
[344956518,1733897440890,-500.0,0.00010958,2]
[344956519,1733897440899,-500.0,0.00010958,2]
[344956520,1733897440909,-500.0,0.00010958,2]
[344956521,1733897440919,-500.0,0.00010958,2]
[344956522,1733897440928,-500.0,0.00010958,2]
[344956523,1733897440938,-500.0,0.00010958,2]
[344956524,1733897440948,-500.0,0.00010958,2]
[344956525,1733897440957,-158.53543618,0.00010958,2]
[344956526,1733897440967,-500.0,0.00010958,2]
[344956527,1733897440977,-500.0,0.00010958,2]
[344956528,1733897440986,-500.0,0.00010958,2]
[344956529,1733897440996,-500.0,0.00010958,2]
[344956530,1733897441006,-500.0,0.00010958,2]
[344956531,1733897441015,-500.0,0.00010958,2]
[344956532,1733897441024,-536.21,0.00010958,2]
[344956533,1733897441034,-536.21,0.00010958,2]
[344956534,1733897441043,-500.0,0.00010958,2]
[344956535,1733897441053,-834.47,0.00010958,2]
[344956536,1733897441063,-834.47,0.00010958,2]
[344956537,1733897441072,-670.44,0.00010958,2]
[344956538,1733897441081,-670.44,0.00010958,2]
[344956539,1733897441090,-500.0,0.00010958,2]
[344956540,1733897441099,-500.0,0.00010958,2]
[344956541,1733897441109,-500.0,0.00010958,2]
[344956542,1733897441118,-500.0,0.00010958,2]
[344956543,1733897441127,-500.0,0.00010958,2]
[344956544,1733897441138,-500.0,0.00010958,2]
[344956545,1733897441147,-500.0,0.00010958,2]
[344956546,1733897441157,-500.0,0.00010958,2]
[344956547,1733897441166,-500.0,0.00010958,2]
[344956548,1733897441176,-500.0,0.00010958,2]
[344956549,1733897441186,-500.0,0.00010958,2]
[344956550,1733897441195,-500.0,0.00010958,2]
[344956551,1733897441204,-500.0,0.00010958,2]
[344956552,1733897441213,-500.0,0.00010958,2]
[344956553,1733897441224,-500.0,0.00010958,2]
[344956554,1733897441234,-500.0,0.00010958,2]
[344956555,1733897441243,-1067.16,0.00010958,2]
[344956556,1733897441252,-1067.16,0.00010958,2]
[344956557,1733897441261,-500.0,0.00010958,2]
[344956558,1733897441270,-530.89591346,0.00010958,2]
[344956559,1733897441279,-500.0,0.00010958,2]
[344956560,1733897441288,-500.0,0.00010958,2]
[344956561,1733897441297,-500.0,0.00010958,2]
[344956562,1733897441306,-500.0,0.00010958,2]
[344956563,1733897441315,-500.0,0.00010958,2]
[344956564,1733897441324,-732.41,0.00010958,2]
[344956565,1733897441334,-701.78,0.00010958,2]
[344956566,1733897441343,-732.41,0.00010958,2]
[344956567,1733897441352,-701.78,0.00010958,2]
[344956568,1733897441361,-500.0,0.00010958,2]
[344956569,1733897441370,-500.0,0.00010958,2]
[344956570,1733897441379,-1375.49,0.00010958,2]
[344956571,1733897441389,-1375.49,0.00010958,2]
[344956572,1733897441397,-500.0,0.00010958,2]
[344956573,1733897441406,-500.0,0.00010958,2]
[344956574,1733897441415,-500.0,0.00010958,2]
[344956575,1733897441424,-1764.73,0.00010958,2]
[344956576,1733897441434,-1016.51,0.00010958,2]
[344956577,1733897441443,-1764.73,0.00010958,2]
[344956578,1733897441452,-1016.51,0.00010958,2]
[344956579,1733897441461,-500.0,0.00010958,2]
[344956580,1733897441470,-500.0,0.00010958,2]
[344956581,1733897441481,-500.0,0.00010958,2]
[344956582,1733897441490,-500.0,0.00010958,2]
[344956583,1733897441499,-500.0,0.00010958,2]
[344956584,1733897441508,-500.0,0.00010958,2]
[344956585,1733897441517,-500.0,0.00010958,2]
[344956586,1733897441526,-500.0,0.00010958,2]
[344956587,1733897441535,-661.16,0.00010958,2]
[344956588,1733897441545,-661.16,0.00010958,2]
[344956589,1733897441554,-1024.72,0.00010958,2]
[344956590,1733897441563,-1024.72,0.00010958,2]
[344956591,1733897441572,-805.4,0.00010958,2]
[344956592,1733897441582,-805.4,0.00010958,2]
[344956593,1733897441591,-500.0,0.00010958,2]
[344956594,1733897441600,-866.61,0.00010958,2]
[344956595,1733897441609,-866.61,0.00010958,2]
[344956596,1733897441618,-500.0,0.00010958,2]
[344956597,1733897441627,-500.0,0.00010958,2]
[344956598,1733897441638,-500.0,0.00010958,2]
[344956599,1733897441647,-631.51,0.00010958,2]
[344956600,1733897441656,-631.51,0.00010958,2]
[344956601,1733897441665,-500.0,0.00010958,2]
[344956602,1733897441675,-500.0,0.00010958,2]
[344956603,1733897441685,-500.0,0.00010958,2]
[344956604,1733897441694,-915.77,0.00010958,2]
[344956605,1733897441703,-915.77,0.00010958,2]
[344956606,1733897441714,-500.0,0.00010958,2]
[344956607,1733897441723,-500.0,0.00010958,2]
[344956608,1733897441732,-543.48479319,0.00010958,2]
[344956609,1733897441745,-1055.29,0.00010958,2]
[344956610,1733897441754,-1055.29,0.00010958,2]
[344956611,1733897441765,-500.0,0.00010958,2]
[344956612,1733897441774,-870.1,0.00010958,2]
[344956613,1733897441785,-870.1,0.00010958,2]
[344956614,1733897441794,-500.0,0.00010958,2]
[344956615,1733897441803,-500.0,0.00010958,2]
[344956616,1733897441812,-500.0,0.00010958,2]
[344956617,1733897441823,-500.0,0.00010958,2]
[344956618,1733897441833,-500.0,0.00010958,2]
[344956619,1733897441842,-500.0,0.00010958,2]
[344956620,1733897441852,-963.78,0.00010958,2]
[344956621,1733897441861,-963.78,0.00010958,2]
[344956622,1733897441871,-500.0,0.00010958,2]
[344956623,1733897441881,-500.0,0.00010958,2]
[344956624,1733897441890,-1109.46,0.00010958,2]
[344956625,1733897441900,-1109.46,0.00010958,2]
[344956626,1733897441910,-500.0,0.00010958,2]
[344956627,1733897441919,-500.0,0.00010958,2]
[344956628,1733897441928,-500.0,0.00010958,2]
[344956629,1733897441938,-500.0,0.00010958,2]
[344956630,1733897441948,-500.0,0.00010958,2]
[344956631,1733897441958,-500.0,0.00010958,2]
[344956632,1733897441967,-500.0,0.00010958,2]
[344956633,1733897441979,-156.48508879,0.00010958,2]
[344956634,1733897441988,-500.0,0.00010958,2]
[344956635,1733897441998,-645.51849658,0.00010958,2]
[344956636,1733897442007,-735.11,0.00010958,2]
[344956637,1733897442017,-735.11,0.00010958,2]
[344956638,1733897442027,-500.0,0.00010958,2]
[344956639,1733897442036,-500.0,0.00010958,2]
[344956640,1733897442046,-590.0618521,0.00010958,2]
[344956641,1733897442055,-500.0,0.00010958,2]
[344956642,1733897442065,-1121.52,0.00010958,2]
[344956643,1733897442075,-500.0,0.00010958,2]
[344956644,1733897442084,-1121.52,0.00010958,2]
[344956645,1733897442094,-500.0,0.00010958,2]
[344956646,1733897442103,-500.0,0.00010958,2]
[344956647,1733897442113,-500.0,0.00010958,2]
[344956648,1733897442122,-500.0,0.00010958,2]
[344956649,1733897442131,-500.0,0.00010958,2]
[344956650,1733897442141,-500.0,0.00010958,2]
[344956651,1733897442151,-540.44,0.00010958,2]
[344956652,1733897442160,-540.44,0.00010958,2]
[344956653,1733897442170,-500.0,0.00010958,2]
[344956654,1733897442179,-500.0,0.00010958,2]
[344956655,1733897442188,-500.0,0.00010958,2]
[344956656,1733897442198,-500.0,0.00010958,2]
[344956657,1733897442208,-500.0,0.00010958,2]
[344956658,1733897442218,-487.48360535,0.00010958,2]
[344956659,1733897442232,-1299.96,0.00010958,2]
[344956660,1733897442242,-1299.96,0.00010958,2]
[344956661,1733897442251,-500.0,0.00010958,2]
[344956662,1733897442261,-500.0,0.00010958,2]
[344956663,1733897442270,-500.0,0.00010958,2]
[344956664,1733897442281,-500.0,0.00010958,2]
[344956665,1733897442290,-500.0,0.00010958,2]
[344956666,1733897442300,-500.0,0.00010958,2]
[344956667,1733897442309,-500.0,0.00010958,2]
[344956668,1733897442319,-500.0,0.00010958,2]
[344956669,1733897442328,-500.0,0.00010958,2]
[344956670,1733897442338,-500.0,0.00010958,2]
[344956671,1733897442348,-644.76,0.00010958,2]
[344956672,1733897442357,-500.0,0.00010958,2]
[344956673,1733897442366,-500.0,0.00010958,2]
[344956674,1733897442376,-500.0,0.00010958,2]
[344956675,1733897442385,-500.0,0.00010958,2]
[344956676,1733897442394,-1039.71,0.00010958,2]
[344956677,1733897442403,-1039.71,0.00010958,2]
[344956678,1733897442413,-1018.58,0.00010958,2]
[344956679,1733897442423,-500.0,0.00010958,2]
[344956680,1733897442432,-1018.58,0.00010958,2]
[344956681,1733897442442,-500.0,0.00010958,2]
[344956682,1733897442452,-500.0,0.00010958,2]
[344956683,1733897442461,-500.0,0.00010958,2]
[344956684,1733897442471,-500.0,0.00010958,2]
[344956685,1733897442491,-500.0,0.00010958,2]
[344956686,1733897442499,-500.0,0.00010958,2]
[344956687,1733897442509,-500.0,0.00010958,2]
[344956688,1733897442518,-500.0,0.00010958,2]
[344956689,1733897442528,-656.78,0.00010958,2]
[344956690,1733897442538,-500.0,0.00010958,2]
[344956691,1733897442547,-500.0,0.00010958,2]
[344956692,1733897442556,-500.0,0.00010958,2]
[344956693,1733897442566,-926.66,0.00010958,2]
[344956694,1733897442576,-500.0,0.00010958,2]
[344956695,1733897442586,-500.0,0.00010958,2]
[344956696,1733897442595,-926.66,0.00010958,2]
[344956697,1733897442605,-500.0,0.00010958,2]
[344956698,1733897442614,-500.0,0.00010958,2]
[344956699,1733897442623,-939.68,0.00010958,2]
[344956700,1733897442632,-939.68,0.00010958,2]
[344956701,1733897442642,-701.19,0.00010958,2]
[344956703,1733897442651,-701.19,0.00010958,2]
[344956704,1733897442661,-500.0,0.00010958,2]
[344956705,1733897442670,-500.0,0.00010958,2]
[344956706,1733897442679,-279.78710279,0.00010958,2]
[344956707,1733897442688,-500.0,0.00010958,2]
[344956708,1733897442697,-500.0,0.00010958,2]
[344956709,1733897442707,-500.0,0.00010958,2]
[344956710,1733897442716,-500.0,0.00010958,2]
[344956711,1733897442727,-500.0,0.00010958,2]
[344956712,1733897442736,-500.0,0.00010958,2]
[344956713,1733897442749,-500.0,0.00010958,2]
[344956714,1733897442968,-500.0,0.00010958,2]
[344956715,1733897442982,-500.0,0.00010958,2]
[344956716,1733897442992,-500.0,0.00010958,2]
[344956717,1733897443002,-500.0,0.00010958,2]
[344956718,1733897443011,-500.0,0.00010958,2]
[344956719,1733897443021,-501.46261965,0.00010958,2]
[344956720,1733897443030,-500.0,0.00010958,2]
[344956721,1733897443040,-500.0,0.00010958,2]
[344956722,1733897443049,-500.0,0.00010958,2]
[344956723,1733897443059,-1130.83,0.00010958,2]
[344956724,1733897443069,-1130.83,0.00010958,2]
[344956725,1733897443078,-588.47,0.00010958,2]
[344956726,1733897443087,-500.0,0.00010958,2]
[344956727,1733897443097,-500.0,0.00010958,2]
[344956728,1733897443106,-500.0,0.00010958,2]
[344956729,1733897443116,-889.23,0.00010958,2]
[344956730,1733897443125,-500.0,0.00010958,2]
[344956731,1733897443134,-889.23,0.00010958,2]
[344956732,1733897443144,-500.0,0.00010958,2]
[344956733,1733897443154,-500.0,0.00010958,2]
[344956734,1733897443164,-500.0,0.00010958,2]
[344956735,1733897443173,-339.41335874,0.00010958,2]
[344956736,1733897443183,-500.0,0.00010958,2]
[344956737,1733897443193,-22.06193336,0.00010958,2]
[344956738,1733897443245,-477.93806664,0.00010958,2]
[344956739,1733897443254,-500.0,0.00010958,2]
[344956740,1733897443264,-550.83,0.00010958,2]
[344956741,1733897443273,-550.83,0.00010958,2]
[344956743,1733897443283,-500.0,0.00010958,2]
[344956744,1733897443293,-500.0,0.00010958,2]
[344956745,1733897443303,-500.0,0.00010958,2]
[344956746,1733897443313,-587.05,0.00010958,2]
[344956747,1733897443323,-500.0,0.00010958,2]
[344956748,1733897443332,-432.71165929,0.00010958,2]
[344956749,1733897443342,-587.05,0.00010958,2]
[344956750,1733897443351,-623.34,0.00010958,2]
[344956751,1733897443361,-500.0,0.00010958,2]
[344956752,1733897443371,-500.0,0.00010958,2]
[344956753,1733897443380,-561.4,0.00010958,2]
[344956754,1733897443389,-500.0,0.00010958,2]
[344956755,1733897443399,-561.4,0.00010958,2]
[344956756,1733897443408,-500.0,0.00010958,2]
[344956757,1733897443418,-500.0,0.00010958,2]
[344956758,1733897443428,-500.0,0.00010958,2]
[344956759,1733897443438,-500.0,0.00010958,2]
[344956760,1733897443447,-921.74,0.00010958,2]
[344956761,1733897443457,-921.74,0.00010958,2]
[344956762,1733897443467,-500.0,0.00010958,2]
[344956763,1733897443478,-500.0,0.00010958,2]
[344956764,1733897443488,-500.0,0.00010958,2]
[344956765,1733897443497,-500.0,0.00010958,2]
[344956766,1733897443507,-500.0,0.00010958,2]
[344956767,1733897443517,-626.93,0.00010958,2]
[344956768,1733897443526,-626.93,0.00010958,2]
[344956769,1733897443536,-500.0,0.00010958,2]
[344956770,1733897443545,-500.0,0.00010958,2]
[344956771,1733897443554,-500.0,0.00010958,2]
[344956772,1733897443563,-774.58,0.00010958,2]
[344956773,1733897443572,-940.76,0.00010958,2]
[344956774,1733897443582,-774.58,0.00010958,2]
[344956775,1733897443592,-500.0,0.00010958,2]
[344956776,1733897443601,-500.0,0.00010958,2]
[344956777,1733897443610,-500.0,0.00010958,2]
[344956778,1733897443620,-562.03,0.00010958,2]
[344956779,1733897443629,-562.03,0.00010958,2]
[344956780,1733897443639,-502.17483819,0.00010958,2]
[344956781,1733897443649,-500.0,0.00010958,2]
[344956782,1733897443659,-500.0,0.00010958,2]
[344956783,1733897443669,-500.0,0.00010958,2]
[344956784,1733897443679,-500.0,0.00010958,2]
[344956785,1733897443689,-500.0,0.00010958,2]
[344956786,1733897443699,-500.0,0.00010958,2]
[344956787,1733897443709,-726.94,0.00010958,2]
[344956788,1733897443719,-726.94,0.00010958,2]
[344956789,1733897443733,-500.0,0.00010958,2]
[344956790,1733897443746,-500.0,0.00010958,2]
[344956791,1733897443756,-500.0,0.00010958,2]
[344956792,1733897443766,-619.64,0.00010958,2]
[344956793,1733897443775,-619.64,0.00010958,2]
[344956794,1733897443786,-500.0,0.00010958,2]
[344956795,1733897443795,-500.0,0.00010958,2]
[344956796,1733897443805,-500.0,0.00010958,2]
[344956797,1733897443815,-500.0,0.00010958,2]
[344956798,1733897443825,-500.0,0.00010958,2]
[344956799,1733897443835,-500.0,0.00010958,2]
[344956800,1733897443846,-500.0,0.00010958,2]
[344956801,1733897443856,-1169.29,0.00010958,2]
[344956802,1733897443866,-1169.29,0.00010958,2]
[344956803,1733897443877,-500.0,0.00010958,2]
[344956804,1733897443888,-871.68,0.00010958,2]
[344956805,1733897443899,-500.0,0.00010958,2]
[344956806,1733897443908,-871.68,0.00010958,2]
[344956807,1733897443918,-500.0,0.00010958,2]
[344956808,1733897443927,-500.0,0.00010958,2]
[344956809,1733897443936,-500.0,0.00010958,2]
[344956810,1733897443946,-503.0892734,0.00010958,2]
[344956811,1733897443955,-500.0,0.00010958,2]
[344956812,1733897443965,-791.6,0.00010958,2]
[344956813,1733897443976,-791.6,0.00010958,2]
[344956814,1733897443986,-500.0,0.00010958,2]
[344956815,1733897443995,-789.62,0.00010958,2]
[344956816,1733897444005,-500.0,0.00010958,2]
[344956817,1733897444015,-500.0,0.00010958,2]
[344956818,1733897444025,-555.56,0.00010958,2]
[344956819,1733897444034,-593.24,0.00010958,2]
[344956820,1733897444044,-522.41,0.00010958,2]
[344956821,1733897444054,-500.0,0.00010958,2]
[344956822,1733897444064,-589.63,0.00010958,2]
[344956823,1733897444073,-643.96,0.00010958,2]
[344956824,1733897444082,-711.52,0.00010958,2]
[344956825,1733897444092,-500.0,0.00010958,2]
[344956826,1733897444102,-500.0,0.00010958,2]
[344956827,1733897444112,-500.0,0.00010958,2]
[344956828,1733897444122,-895.38,0.00010958,2]
[344956829,1733897444131,-500.0,0.00010958,2]
[344956830,1733897444140,-500.0,0.00010958,2]
[344956831,1733897444150,-500.0,0.00010958,2]
[344956832,1733897444159,-500.0,0.00010958,2]
[344956833,1733897444169,-500.0,0.00010958,2]
[344956834,1733897444178,-500.0,0.00010958,2]
[344956835,1733897444188,-500.0,0.00010958,2]
[344956836,1733897444197,-500.0,0.00010958,2]
[344956837,1733897444206,-500.0,0.00010958,2]
[344956838,1733897444215,-500.0,0.00010958,2]
[344956839,1733897444226,-500.0,0.00010958,2]
[344956840,1733897444236,-500.0,0.00010958,2]
[344956841,1733897444245,-500.0,0.00010958,2]
[344956842,1733897444254,-500.0,0.00010958,2]
[344956843,1733897444264,-500.0,0.00010958,2]
[344956844,1733897444273,-565.48573129,0.00010958,2]
[344956845,1733897444282,-509.29051307,0.00010958,2]
[344956846,1733897444292,-500.0,0.00010958,2]
[344956847,1733897444301,-500.0,0.00010958,2]
[344956848,1733897444311,-1778.08,0.00010958,2]
[344956849,1733897444320,-500.0,0.00010958,2]
[344956850,1733897444330,-500.0,0.00010958,2]
[344956851,1733897444340,-500.0,0.00010958,2]
[344956852,1733897444349,-501.90474757,0.00010958,2]
[344956853,1733897444358,-839.39,0.00010958,2]
[344956854,1733897444368,-500.0,0.00010958,2]
[344956855,1733897444377,-500.0,0.00010958,2]
[344956856,1733897444387,-180.48991094,0.00010958,2]